[Event "Late-Titled-Tuesday-Blitz-September-26-2023"]
[Site "Chess.com"]
[Date "2023.09.26"]
[Round "10"]
[White "RCone"]
[Black "Zavgorodniy_Sergiy"]
[Result "0-1"]
[WhiteElo "2429"]
[BlackElo "2590"]
[TimeControl "180+1"]
[EndTime "15:46:42 PDT"]
[Termination "Zavgorodniy_Sergiy won by checkmate"]

1. e4 {[%clk 0:03:00.2]} 1... c6 {[%clk 0:03:00.2]} 2. d4 {[%clk 0:02:59.9]}
2... d5 {[%clk 0:03:00.4]} 3. e5 {[%clk 0:02:59.3]} 3... Bf5 {[%clk 0:03:00.1]}
4. h4 {[%clk 0:02:59]} 4... h5 {[%clk 0:03:00]} 5. Bg5 {[%clk 0:02:56.9]} 5...
Qb6 {[%clk 0:02:58]} 6. Bd3 {[%clk 0:02:57.1]} 6... Bxd3 {[%clk 0:02:58]} 7.
Qxd3 {[%clk 0:02:56.7]} 7... e6 {[%clk 0:02:58.4]} 8. Nd2 {[%clk 0:02:53.4]}
8... Qa6 {[%clk 0:02:57.6]} 9. c4 {[%clk 0:02:52.1]} 9... Bb4 {[%clk 0:02:57]}
10. b3 {[%clk 0:02:47.2]} 10... Nd7 {[%clk 0:02:55.8]} 11. Ne2 {[%clk
0:02:38.3]} 11... Ne7 {[%clk 0:02:55.8]} 12. Bxe7 {[%clk 0:02:36.9]} 12... Bxe7
{[%clk 0:02:55.3]} 13. Qg3 {[%clk 0:02:22.5]} 13... g6 {[%clk 0:02:55.4]} 14.
Nf4 {[%clk 0:02:17]} 14... dxc4 {[%clk 0:02:46.5]} 15. Nxc4 {[%clk 0:02:11.6]}
15... Bb4+ {[%clk 0:02:45.9]} 16. Kf1 {[%clk 0:02:09]} 16... Nb6 {[%clk
0:02:45.2]} 17. Rc1 {[%clk 0:01:40.4]} 17... O-O-O {[%clk 0:02:37.7]} 18. a4
{[%clk 0:01:36.9]} 18... Rxd4 {[%clk 0:02:33.5]} 19. Ne2 {[%clk 0:01:34.4]}
19... Rd5 {[%clk 0:02:29.9]} 20. Qf4 {[%clk 0:01:11.6]} 20... Nxc4 {[%clk
0:02:24.4]} 21. Rxc4 {[%clk 0:01:11]} 21... Rd1# {[%clk 0:02:21.9]} 0-1

[Event "Late-Titled-Tuesday-Blitz-September-26-2023"]
[Site "Chess.com"]
[Date "2023.09.26"]
[Round "10"]
[White "NigelDwarf"]
[Black "Garmendiarov"]
[Result "1-0"]
[WhiteElo "2522"]
[BlackElo "2309"]
[TimeControl "180+1"]
[EndTime "15:47:10 PDT"]
[Termination "NigelDwarf won by resignation"]

1. b3 {[%clk 0:02:59.4]} 1... Nf6 {[%clk 0:02:59.3]} 2. Bb2 {[%clk 0:02:58.6]}
2... g6 {[%clk 0:03:00]} 3. g4 {[%clk 0:02:54.8]} 3... Bg7 {[%clk 0:02:56.4]} 4.
g5 {[%clk 0:02:53.6]} 4... Nh5 {[%clk 0:02:56.6]} 5. Bxg7 {[%clk 0:02:54]} 5...
Nxg7 {[%clk 0:02:57.5]} 6. e4 {[%clk 0:02:52.7]} 6... e5 {[%clk 0:02:57.4]} 7.
d4 {[%clk 0:02:49.8]} 7... Qxg5 {[%clk 0:02:51.8]} 8. Nf3 {[%clk 0:02:49.1]}
8... Qf4 {[%clk 0:02:52.3]} 9. dxe5 {[%clk 0:02:47.1]} 9... Qxe4+ {[%clk
0:02:52.3]} 10. Be2 {[%clk 0:02:47.3]} 10... Nc6 {[%clk 0:02:51]} 11. Nc3 {[%clk
0:02:44.7]} 11... Qb4 {[%clk 0:02:50.4]} 12. Qd2 {[%clk 0:02:44.5]} 12... O-O
{[%clk 0:02:44.9]} 13. O-O-O {[%clk 0:02:42]} 13... Qa3+ {[%clk 0:02:17.3]} 14.
Kb1 {[%clk 0:02:41.8]} 14... d6 {[%clk 0:02:16.5]} 15. Nd5 {[%clk 0:02:30]}
15... Bf5 {[%clk 0:01:52.7]} 16. Nf6+ {[%clk 0:02:14.8]} 16... Kh8 {[%clk
0:01:52.2]} 17. Qh6 {[%clk 0:02:12.2]} 17... Bxc2+ {[%clk 0:01:46.9]} 18. Ka1
{[%clk 0:02:10.8]} 18... g5 {[%clk 0:01:37.6]} 19. Bd3 {[%clk 0:02:09.1]} 19...
Bxd3 {[%clk 0:00:56.8]} 20. Rxd3 {[%clk 0:02:10]} 1-0

[Event "Late-Titled-Tuesday-Blitz-September-26-2023"]
[Site "Chess.com"]
[Date "2023.09.26"]
[Round "10"]
[White "gabduschew"]
[Black "victormago"]
[Result "1-0"]
[WhiteElo "2398"]
[BlackElo "2490"]
[TimeControl "180+1"]
[EndTime "15:47:42 PDT"]
[Termination "gabduschew won by resignation"]

1. c4 {[%clk 0:03:00]} 1... e5 {[%clk 0:02:59.4]} 2. Nc3 {[%clk 0:02:58.6]} 2...
Nc6 {[%clk 0:02:59.9]} 3. e4 {[%clk 0:02:55.5]} 3... g6 {[%clk 0:02:48]} 4. g3
{[%clk 0:02:55.2]} 4... Bg7 {[%clk 0:02:47.8]} 5. Bg2 {[%clk 0:02:55.6]} 5...
Nge7 {[%clk 0:02:48.1]} 6. Nge2 {[%clk 0:02:55.4]} 6... O-O {[%clk 0:02:48.7]}
7. d3 {[%clk 0:02:55.3]} 7... d6 {[%clk 0:02:49.2]} 8. O-O {[%clk 0:02:49.9]}
8... f5 {[%clk 0:02:47.6]} 9. f4 {[%clk 0:02:49]} 9... fxe4 {[%clk 0:02:43.5]}
10. dxe4 {[%clk 0:02:48.2]} 10... Bg4 {[%clk 0:02:43.6]} 11. h3 {[%clk
0:02:47.2]} 11... Bxe2 {[%clk 0:02:40.5]} 12. Qxe2 {[%clk 0:02:46.3]} 12... Nd4
{[%clk 0:02:39.6]} 13. Qd3 {[%clk 0:02:44.2]} 13... Nec6 {[%clk 0:02:38.2]} 14.
Nd5 {[%clk 0:02:32.2]} 14... exf4 {[%clk 0:02:35.3]} 15. gxf4 {[%clk 0:02:30.1]}
15... Qd7 {[%clk 0:02:26.3]} 16. Be3 {[%clk 0:02:23.2]} 16... Rae8 {[%clk
0:02:19.5]} 17. Rad1 {[%clk 0:02:17]} 17... a5 {[%clk 0:01:51.3]} 18. Rd2 {[%clk
0:02:13.5]} 18... Ne6 {[%clk 0:01:39.1]} 19. b3 {[%clk 0:02:06.6]} 19... Ne7
{[%clk 0:01:25.1]} 20. f5 {[%clk 0:01:57.4]} 20... gxf5 {[%clk 0:01:06.5]} 21.
exf5 {[%clk 0:01:56.7]} 21... Nd8 {[%clk 0:00:50.8]} 22. f6 {[%clk 0:01:50.1]}
1-0

[Event "Late-Titled-Tuesday-Blitz-September-26-2023"]
[Site "Chess.com"]
[Date "2023.09.26"]
[Round "10"]
[White "ValeriyGrinev"]
[Black "Willychess95"]
[Result "1-0"]
[WhiteElo "2602"]
[BlackElo "2700"]
[TimeControl "180+1"]
[EndTime "15:47:49 PDT"]
[Termination "ValeriyGrinev won by resignation"]

1. d4 {[%clk 0:02:57.7]} 1... Nf6 {[%clk 0:02:56.5]} 2. c4 {[%clk 0:02:58]} 2...
e6 {[%clk 0:02:55.9]} 3. Nc3 {[%clk 0:02:58.5]} 3... Bb4 {[%clk 0:02:55.8]} 4.
e3 {[%clk 0:02:59]} 4... Bxc3+ {[%clk 0:02:55.6]} 5. bxc3 {[%clk 0:02:58.9]}
5... c5 {[%clk 0:02:56.5]} 6. Bd3 {[%clk 0:02:59.4]} 6... Nc6 {[%clk 0:02:56.4]}
7. Ne2 {[%clk 0:02:59.7]} 7... d6 {[%clk 0:02:56.7]} 8. O-O {[%clk 0:03:00.1]}
8... b6 {[%clk 0:02:57.1]} 9. Ng3 {[%clk 0:03:00.3]} 9... Ba6 {[%clk 0:02:56.4]}
10. e4 {[%clk 0:02:42.1]} 10... Nd7 {[%clk 0:02:52]} 11. Qg4 {[%clk 0:02:39]}
11... g6 {[%clk 0:02:40.7]} 12. Be3 {[%clk 0:02:37.5]} 12... Qe7 {[%clk
0:02:38]} 13. f4 {[%clk 0:02:37.1]} 13... f5 {[%clk 0:02:36.1]} 14. Qf3 {[%clk
0:02:35]} 14... O-O-O {[%clk 0:02:34.7]} 15. exf5 {[%clk 0:02:33.6]} 15... Na5
{[%clk 0:02:34.2]} 16. fxe6 {[%clk 0:02:29.1]} 16... Nb8 {[%clk 0:02:33.9]} 17.
d5 {[%clk 0:02:26.8]} 17... Bxc4 {[%clk 0:02:28.5]} 18. Bxc4 {[%clk 0:02:25.8]}
18... Nxc4 {[%clk 0:02:29.4]} 19. f5 {[%clk 0:02:26.6]} 19... gxf5 {[%clk
0:02:26.6]} 20. Nxf5 {[%clk 0:02:26.2]} 20... Qe8 {[%clk 0:02:20.3]} 21. Bg5
{[%clk 0:02:22.4]} 21... Ne5 {[%clk 0:00:15.5]} 22. Qe4 {[%clk 0:02:20.4]} 1-0

[Event "Late-Titled-Tuesday-Blitz-September-26-2023"]
[Site "Chess.com"]
[Date "2023.09.26"]
[Round "10"]
[White "Dacean99"]
[Black "PapaieDudu"]
[Result "1-0"]
[WhiteElo "2543"]
[BlackElo "2400"]
[TimeControl "180+1"]
[EndTime "15:48:00 PDT"]
[Termination "Dacean99 won by resignation"]

1. d4 {[%clk 0:02:56.7]} 1... d5 {[%clk 0:02:59.9]} 2. Nf3 {[%clk 0:02:57.3]}
2... Nf6 {[%clk 0:02:59.8]} 3. c4 {[%clk 0:02:58]} 3... e6 {[%clk 0:03:00]} 4.
Nc3 {[%clk 0:02:58.6]} 4... a6 {[%clk 0:03:00.1]} 5. cxd5 {[%clk 0:02:54.9]}
5... exd5 {[%clk 0:03:01]} 6. Bf4 {[%clk 0:02:54.7]} 6... Bd6 {[%clk 0:02:57.4]}
7. e3 {[%clk 0:02:51.2]} 7... O-O {[%clk 0:02:56.7]} 8. Bd3 {[%clk 0:02:49.2]}
8... Re8 {[%clk 0:02:55.1]} 9. O-O {[%clk 0:02:47.8]} 9... b5 {[%clk 0:02:43.7]}
10. Ne5 {[%clk 0:02:45.4]} 10... Bb7 {[%clk 0:02:42.9]} 11. Rc1 {[%clk
0:02:41.4]} 11... Nbd7 {[%clk 0:02:41.9]} 12. Nxd7 {[%clk 0:02:40.2]} 12... Qxd7
{[%clk 0:02:41.9]} 13. Bxd6 {[%clk 0:02:40.3]} 13... Qxd6 {[%clk 0:02:42.5]} 14.
Qf3 {[%clk 0:02:38.4]} 14... Ne4 {[%clk 0:02:34.5]} 15. Bxe4 {[%clk 0:02:36.4]}
15... dxe4 {[%clk 0:02:34.5]} 16. Qg3 {[%clk 0:02:37.3]} 16... Qd7 {[%clk
0:02:26.8]} 17. Ne2 {[%clk 0:02:34]} 17... Rac8 {[%clk 0:02:25.2]} 18. Rc5
{[%clk 0:02:32.4]} 18... Bd5 {[%clk 0:02:21.9]} 19. Rfc1 {[%clk 0:02:30.4]}
19... c6 {[%clk 0:02:13.7]} 20. a3 {[%clk 0:02:27.2]} 20... h6 {[%clk
0:01:50.8]} 21. Nf4 {[%clk 0:02:24.5]} 21... Bc4 {[%clk 0:01:44.7]} 22. Nh5
{[%clk 0:02:20.2]} 22... Kf8 {[%clk 0:00:59.7]} 23. Qxg7+ {[%clk 0:02:17.5]}
23... Ke7 {[%clk 0:01:00.4]} 24. Qf6+ {[%clk 0:02:14]} 24... Kf8 {[%clk
0:01:00]} 25. Qxh6+ {[%clk 0:02:13.9]} 25... Ke7 {[%clk 0:00:58.8]} 26. Qf6+
{[%clk 0:02:14.5]} 26... Kf8 {[%clk 0:00:59.1]} 27. Rg5 {[%clk 0:02:12.4]} 27...
Qg4 {[%clk 0:00:22.3]} 28. Rxg4 {[%clk 0:02:10.9]} 1-0

[Event "Late-Titled-Tuesday-Blitz-September-26-2023"]
[Site "Chess.com"]
[Date "2023.09.26"]
[Round "10"]
[White "JG-17"]
[Black "Byniolus"]
[Result "0-1"]
[WhiteElo "2521"]
[BlackElo "2760"]
[TimeControl "180+1"]
[EndTime "15:48:19 PDT"]
[Termination "Byniolus won by checkmate"]

1. e4 {[%clk 0:03:00.9]} 1... d6 {[%clk 0:03:00]} 2. Nc3 {[%clk 0:02:57.8]} 2...
Nf6 {[%clk 0:03:00.9]} 3. g3 {[%clk 0:02:57.9]} 3... Bg4 {[%clk 0:03:00.1]} 4.
f3 {[%clk 0:02:56.1]} 4... Bh5 {[%clk 0:03:00.4]} 5. Nh3 {[%clk 0:02:52.1]} 5...
e5 {[%clk 0:02:58.4]} 6. Bg2 {[%clk 0:02:51]} 6... Be7 {[%clk 0:02:57.9]} 7. O-O
{[%clk 0:02:51.3]} 7... c6 {[%clk 0:02:57.3]} 8. d3 {[%clk 0:02:47.5]} 8... O-O
{[%clk 0:02:57]} 9. Qe1 {[%clk 0:02:45.1]} 9... d5 {[%clk 0:02:56.7]} 10. f4
{[%clk 0:02:44.1]} 10... dxe4 {[%clk 0:02:52]} 11. fxe5 {[%clk 0:02:33.1]} 11...
Qd4+ {[%clk 0:02:48.2]} 12. Kh1 {[%clk 0:02:31.2]} 12... Qxe5 {[%clk 0:02:47.1]}
13. Nxe4 {[%clk 0:02:22.2]} 13... Nbd7 {[%clk 0:02:39.9]} 14. Bf4 {[%clk
0:02:06.7]} 14... Qxb2 {[%clk 0:02:12.4]} 15. Rb1 {[%clk 0:02:06]} 15... Qxc2
{[%clk 0:02:12.7]} 16. Rxb7 {[%clk 0:02:02.9]} 16... Rfe8 {[%clk 0:02:11.9]} 17.
Qa5 {[%clk 0:01:37.3]} 17... Be2 {[%clk 0:02:00.2]} 18. Rf2 {[%clk 0:01:04.5]}
18... Qxd3 {[%clk 0:01:54.8]} 19. Ng1 {[%clk 0:00:45]} 19... Nxe4 {[%clk
0:01:29.6]} 20. Rxe2 {[%clk 0:00:35.8]} 20... Ndc5 {[%clk 0:01:29.9]} 21. Re3
{[%clk 0:00:28.5]} 21... Nf2# {[%clk 0:01:26.1]} 0-1

[Event "Late-Titled-Tuesday-Blitz-September-26-2023"]
[Site "Chess.com"]
[Date "2023.09.26"]
[Round "10"]
[White "jcmesafischer"]
[Black "nitpicker"]
[Result "0-1"]
[WhiteElo "2306"]
[BlackElo "2243"]
[TimeControl "180+1"]
[EndTime "15:48:52 PDT"]
[Termination "nitpicker won by resignation"]

1. d3 {[%clk 0:02:57.3]} 1... g6 {[%clk 0:02:57.8]} 2. Nf3 {[%clk 0:02:54.6]}
2... Bg7 {[%clk 0:02:57.8]} 3. g3 {[%clk 0:02:47.1]} 3... d5 {[%clk 0:02:57.1]}
4. Bg2 {[%clk 0:02:34.1]} 4... Nf6 {[%clk 0:02:56.8]} 5. O-O {[%clk 0:02:33.1]}
5... O-O {[%clk 0:02:56.4]} 6. Nbd2 {[%clk 0:02:21]} 6... c5 {[%clk 0:02:56]} 7.
e4 {[%clk 0:02:19.9]} 7... Nc6 {[%clk 0:02:53.8]} 8. exd5 {[%clk 0:02:18.5]}
8... Nxd5 {[%clk 0:02:53.3]} 9. Ne4 {[%clk 0:02:18]} 9... b6 {[%clk 0:02:51]}
10. a4 {[%clk 0:02:15.5]} 10... h6 {[%clk 0:02:47]} 11. Re1 {[%clk 0:02:14.5]}
11... Bb7 {[%clk 0:02:35.2]} 12. Rb1 {[%clk 0:02:07.8]} 12... Rc8 {[%clk
0:02:34]} 13. c3 {[%clk 0:02:08]} 13... Qc7 {[%clk 0:02:29.1]} 14. h3 {[%clk
0:01:58.8]} 14... Rcd8 {[%clk 0:02:22]} 15. Qc2 {[%clk 0:01:57.1]} 15... e5
{[%clk 0:02:15.5]} 16. Nfd2 {[%clk 0:01:47.3]} 16... f5 {[%clk 0:02:14.4]} 17.
Qb3 {[%clk 0:01:45.2]} 17... Na5 {[%clk 0:01:54]} 18. Qa2 {[%clk 0:01:38.9]}
18... Kh7 {[%clk 0:01:54.2]} 19. b4 {[%clk 0:01:33]} 19... fxe4 {[%clk
0:01:45.1]} 20. bxa5 {[%clk 0:01:31.3]} 20... Nxc3 {[%clk 0:01:44.9]} 21. Qc2
{[%clk 0:01:27.6]} 21... Nxb1 {[%clk 0:01:41.6]} 22. Qxb1 {[%clk 0:01:28.5]}
22... exd3 {[%clk 0:01:37.6]} 23. axb6 {[%clk 0:01:29.1]} 23... axb6 {[%clk
0:01:32.7]} 24. Bxb7 {[%clk 0:01:29.2]} 24... Qxb7 {[%clk 0:01:32.1]} 25. Nc4
{[%clk 0:01:30.1]} 25... Rd4 {[%clk 0:01:14.1]} 26. Nxe5 {[%clk 0:01:23]} 26...
Bxe5 {[%clk 0:01:06.3]} 27. Rxe5 {[%clk 0:01:22.3]} 27... d2 {[%clk 0:01:06.4]}
28. Bxd2 {[%clk 0:01:20.3]} 28... Rxd2 {[%clk 0:01:05.7]} 29. Re6 {[%clk
0:01:16.2]} 29... Qf7 {[%clk 0:01:00]} 30. Qe1 {[%clk 0:01:10.9]} 30... Rxf2
{[%clk 0:00:48.1]} 31. Re7 {[%clk 0:01:04.7]} 31... Rf1+ {[%clk 0:00:48.3]} 32.
Kh2 {[%clk 0:01:01.8]} 32... Rxe1 {[%clk 0:00:47.3]} 0-1

[Event "Late-Titled-Tuesday-Blitz-September-26-2023"]
[Site "Chess.com"]
[Date "2023.09.26"]
[Round "10"]
[White "rose107"]
[Black "Nekoo04"]
[Result "1-0"]
[WhiteElo "2167"]
[BlackElo "2305"]
[TimeControl "180+1"]
[EndTime "15:49:07 PDT"]
[Termination "rose107 won on time"]

1. e4 {[%clk 0:03:00.9]} 1... c5 {[%clk 0:02:29.8]} 2. c3 {[%clk 0:03:00.2]}
2... d5 {[%clk 0:02:29]} 3. exd5 {[%clk 0:02:58.5]} 3... Qxd5 {[%clk 0:02:29.9]}
4. d4 {[%clk 0:02:59]} 4... Nf6 {[%clk 0:02:27.7]} 5. Nf3 {[%clk 0:02:58.2]}
5... e6 {[%clk 0:02:27.2]} 6. Be3 {[%clk 0:02:54.2]} 6... cxd4 {[%clk
0:02:26.3]} 7. cxd4 {[%clk 0:02:53.6]} 7... Nc6 {[%clk 0:02:26.9]} 8. Nc3 {[%clk
0:02:53.2]} 8... Qa5 {[%clk 0:02:25.8]} 9. Bb5 {[%clk 0:02:51]} 9... Bd7 {[%clk
0:02:22.2]} 10. O-O {[%clk 0:02:50.1]} 10... Be7 {[%clk 0:02:07.3]} 11. d5
{[%clk 0:02:16.6]} 11... exd5 {[%clk 0:01:24.6]} 12. Nxd5 {[%clk 0:02:16.4]}
12... Nxd5 {[%clk 0:00:58.1]} 13. Qxd5 {[%clk 0:02:17.3]} 13... Qc7 {[%clk
0:00:43]} 14. Rad1 {[%clk 0:02:06.6]} 14... Be6 {[%clk 0:00:34.3]} 15. Qe4
{[%clk 0:02:01]} 15... O-O {[%clk 0:00:30.6]} 16. Bd3 {[%clk 0:02:00.4]} 16...
g6 {[%clk 0:00:26.2]} 17. Bh6 {[%clk 0:01:54.4]} 17... Rfe8 {[%clk 0:00:23.2]}
18. Nd4 {[%clk 0:01:46.2]} 18... Bf6 {[%clk 0:00:15.8]} 19. Nb5 {[%clk
0:01:27.6]} 19... Qe5 {[%clk 0:00:10.2]} 20. Qf3 {[%clk 0:01:21.5]} 20... a6
{[%clk 0:00:06.7]} 21. Rfe1 {[%clk 0:01:19.5]} 21... Qxb2 {[%clk 0:00:03.9]} 22.
Nc7 {[%clk 0:01:18.5]} 22... Bxa2 {[%clk 0:00:02.1]} 23. Nxe8 {[%clk 0:01:14]}
1-0

[Event "Late-Titled-Tuesday-Blitz-September-26-2023"]
[Site "Chess.com"]
[Date "2023.09.26"]
[Round "10"]
[White "ritanovikova"]
[Black "BeautiFullMindChess"]
[Result "1-0"]
[WhiteElo "2193"]
[BlackElo "2363"]
[TimeControl "180+1"]
[EndTime "15:49:28 PDT"]
[Termination "ritanovikova won on time"]

1. d4 {[%clk 0:02:58.4]} 1... Nf6 {[%clk 0:02:56.2]} 2. Bg5 {[%clk 0:02:57.4]}
2... d5 {[%clk 0:02:55.4]} 3. Nd2 {[%clk 0:02:56.4]} 3... c5 {[%clk 0:02:54.1]}
4. c3 {[%clk 0:02:56]} 4... Nc6 {[%clk 0:02:46.1]} 5. e3 {[%clk 0:02:55.4]} 5...
Bf5 {[%clk 0:02:37.6]} 6. Qb3 {[%clk 0:02:52.1]} 6... Qd7 {[%clk 0:02:31]} 7.
Ngf3 {[%clk 0:02:48.1]} 7... h6 {[%clk 0:02:29.2]} 8. Bxf6 {[%clk 0:02:46.7]}
8... gxf6 {[%clk 0:02:28.4]} 9. dxc5 {[%clk 0:02:46.6]} 9... e5 {[%clk
0:02:23.1]} 10. Qb5 {[%clk 0:02:40.1]} 10... a6 {[%clk 0:02:09]} 11. Qb6 {[%clk
0:02:38.7]} 11... Be7 {[%clk 0:01:35.4]} 12. c4 {[%clk 0:02:29.8]} 12... d4
{[%clk 0:01:34.3]} 13. exd4 {[%clk 0:02:23.1]} 13... exd4 {[%clk 0:01:29.9]} 14.
Nh4 {[%clk 0:02:22.2]} 14... Bh7 {[%clk 0:01:28.7]} 15. Be2 {[%clk 0:02:21.9]}
15... O-O {[%clk 0:01:03.1]} 16. O-O {[%clk 0:02:15.6]} 16... d3 {[%clk
0:01:00.6]} 17. Bf3 {[%clk 0:02:11.2]} 17... Nd4 {[%clk 0:01:01.1]} 18. Qxb7
{[%clk 0:02:07.3]} 18... Nxf3+ {[%clk 0:00:40.1]} 19. Qxf3 {[%clk 0:02:05.8]}
19... Bxc5 {[%clk 0:00:41]} 20. Rfd1 {[%clk 0:02:00.4]} 20... Rad8 {[%clk
0:00:38.2]} 21. Ne4 {[%clk 0:01:58.5]} 21... Bd4 {[%clk 0:00:22.6]} 22. Nxf6+
{[%clk 0:01:54.9]} 22... Bxf6 {[%clk 0:00:22.2]} 23. Qxf6 {[%clk 0:01:55.5]}
23... Rfe8 {[%clk 0:00:19.7]} 24. Qxh6 {[%clk 0:01:51.4]} 24... Qg4 {[%clk
0:00:17.7]} 25. Nf3 {[%clk 0:01:48.4]} 25... Qxc4 {[%clk 0:00:16]} 26. Qg5+
{[%clk 0:01:44.6]} 26... Bg6 {[%clk 0:00:15.8]} 27. h4 {[%clk 0:01:43.6]} 27...
Rd5 {[%clk 0:00:14]} 28. Qg3 {[%clk 0:01:42.7]} 28... Kh8 {[%clk 0:00:11.9]} 29.
Rd2 {[%clk 0:01:39.3]} 29... Qb4 {[%clk 0:00:10.1]} 30. Rad1 {[%clk 0:01:38.1]}
30... Red8 {[%clk 0:00:06.9]} 31. Ne5 {[%clk 0:01:27]} 31... Qe4 {[%clk
0:00:03.1]} 32. Nxg6+ {[%clk 0:01:24.8]} 32... Qxg6 {[%clk 0:00:03.7]} 33. Qe3
{[%clk 0:01:22.4]} 33... Rd4 {[%clk 0:00:02.2]} 34. Qe5+ {[%clk 0:01:19.9]}
34... Kh7 {[%clk 0:00:02.2]} 35. g3 {[%clk 0:01:17.3]} 1-0

[Event "Late-Titled-Tuesday-Blitz-September-26-2023"]
[Site "Chess.com"]
[Date "2023.09.26"]
[Round "10"]
[White "Cmorales2001"]
[Black "dorpato"]
[Result "1-0"]
[WhiteElo "2425"]
[BlackElo "2043"]
[TimeControl "180+1"]
[EndTime "15:49:35 PDT"]
[Termination "Cmorales2001 won on time"]

1. e4 {[%clk 0:03:00.9]} 1... c5 {[%clk 0:02:52.5]} 2. Nf3 {[%clk 0:03:00.4]}
2... d6 {[%clk 0:02:51.8]} 3. Bb5+ {[%clk 0:02:59.6]} 3... Bd7 {[%clk
0:02:51.7]} 4. Bxd7+ {[%clk 0:02:59.7]} 4... Qxd7 {[%clk 0:02:52.6]} 5. O-O
{[%clk 0:02:59.4]} 5... Nc6 {[%clk 0:02:52.4]} 6. c3 {[%clk 0:02:58.7]} 6... e5
{[%clk 0:02:52.2]} 7. d4 {[%clk 0:02:58.9]} 7... cxd4 {[%clk 0:02:52]} 8. cxd4
{[%clk 0:02:59.8]} 8... exd4 {[%clk 0:02:51.8]} 9. Nxd4 {[%clk 0:02:58.9]} 9...
Nxd4 {[%clk 0:02:51.2]} 10. Qxd4 {[%clk 0:02:58.2]} 10... Nf6 {[%clk 0:02:47]}
11. Nc3 {[%clk 0:02:54]} 11... Be7 {[%clk 0:02:46.1]} 12. Bf4 {[%clk 0:02:54.2]}
12... O-O {[%clk 0:02:44]} 13. Rad1 {[%clk 0:02:50.7]} 13... Rfd8 {[%clk
0:02:36.9]} 14. Rfe1 {[%clk 0:02:50.7]} 14... Nh5 {[%clk 0:02:30]} 15. Be3
{[%clk 0:02:49.7]} 15... Bf6 {[%clk 0:02:23.9]} 16. Qd2 {[%clk 0:02:49.6]} 16...
Bxc3 {[%clk 0:02:20.9]} 17. Qxc3 {[%clk 0:02:49.2]} 17... Nf6 {[%clk 0:02:18.4]}
18. Bd4 {[%clk 0:02:38.7]} 18... Ne8 {[%clk 0:02:11.9]} 19. Qg3 {[%clk
0:02:23.5]} 19... Qe6 {[%clk 0:02:05.1]} 20. a3 {[%clk 0:02:21.2]} 20... f6
{[%clk 0:01:55.7]} 21. Bc3 {[%clk 0:02:13.3]} 21... Rd7 {[%clk 0:01:45.5]} 22.
h4 {[%clk 0:02:10.3]} 22... Rad8 {[%clk 0:01:30.6]} 23. h5 {[%clk 0:02:07.3]}
23... Qf7 {[%clk 0:01:18.3]} 24. h6 {[%clk 0:02:06.1]} 24... g6 {[%clk 0:01:10]}
25. Bd4 {[%clk 0:02:00.4]} 25... b6 {[%clk 0:01:06.6]} 26. Qf4 {[%clk
0:01:58.9]} 26... d5 {[%clk 0:00:56.3]} 27. e5 {[%clk 0:01:57.5]} 27... fxe5
{[%clk 0:00:35]} 28. Qxe5 {[%clk 0:01:56.4]} 28... Nf6 {[%clk 0:00:25.2]} 29.
Qxf6 {[%clk 0:01:54.4]} 29... Qxf6 {[%clk 0:00:19.6]} 30. Bxf6 {[%clk
0:01:55.3]} 30... Rf8 {[%clk 0:00:19.7]} 31. Bg7 {[%clk 0:01:54.4]} 31... Rfd8
{[%clk 0:00:17.4]} 32. Rd4 {[%clk 0:01:52.3]} 32... a5 {[%clk 0:00:15]} 33. f4
{[%clk 0:01:49.5]} 33... b5 {[%clk 0:00:12]} 34. g4 {[%clk 0:01:43.7]} 34... b4
{[%clk 0:00:11.6]} 35. axb4 {[%clk 0:01:39.5]} 35... axb4 {[%clk 0:00:12.5]} 36.
Red1 {[%clk 0:01:38.6]} 36... b3 {[%clk 0:00:11.8]} 37. Bf6 {[%clk 0:01:33]}
37... Rc8 {[%clk 0:00:09.2]} 38. Rxd5 {[%clk 0:01:31]} 38... Rxd5 {[%clk
0:00:01.6]} 39. Rxd5 {[%clk 0:01:29.9]} 39... Rc1+ {[%clk 0:00:01.5]} 40. Kf2
{[%clk 0:01:29.4]} 40... Rc2+ {[%clk 0:00:02]} 41. Kf3 {[%clk 0:01:26.1]} 1-0